bitfinex-derivatives/quotes_SOLF0:USTF0_20260227
["timestamp","ask_amount","ask_price","bid_price","bid_amount"]
[1772208087233,10.9076,82.509,82.441,36.3]
[1772208087234,17.93390259,82.506,82.44,9.13585596]
[1772208088039,17.93390259,82.506,82.436,36.3]
[1772208088040,17.93390259,82.491,82.465,0.08013554]
[1772208088242,17.89148043,82.489,82.4,9.13585596]
[1772208088440,17.89148043,82.487,82.4,9.13585596]
[1772208088634,10.9139,82.461,82.409,10.9208]
[1772208088828,17.89148043,82.485,82.4,9.13585596]
[1772208089028,9.13585596,82.5,82.4,9.13585596]
[1772208089029,17.89148043,82.483,82.4,9.13585596]
[1772208089233,10.9136,82.463,82.41,10.9206]
[1772208089429,17.9057657,82.464,82.4,9.13585596]
[1772208089631,0.07917127,82.454,82.4,9.13585596]
[1772208091039,0.07917127,82.454,82.417,10.9196]
[1772208091235,0.07917127,82.454,82.4,9.13585596]
[1772208093340,0.07917127,82.454,82.412,10.9202]
[1772208093735,0.07917127,82.454,82.403,10.9215]
[1772208093938,17.97624064,82.454,82.39,9.13585596]
[1772208094137,12.37705377,82.453,82.39,9.13585596]
[1772208094345,17.89491065,82.451,82.39,9.13585596]
[1772208094838,17.89491065,82.449,82.394,10.9228]
[1772208095046,17.89491065,82.449,82.366,36.3]
[1772208095339,12.57705901,82.448,82.371,36.3]
[1772208095540,12.57705901,82.447,82.371,36.3]
[1772208095741,12.57705901,82.446,82.371,36.3]
[1772208095940,12.57705901,82.445,82.371,36.3]
[1772208096136,12.57705901,82.444,82.371,36.3]
[1772208096342,17.89491065,82.449,82.371,36.3]
[1772208096536,12.56616472,82.448,82.371,36.3]
[1772208096734,17.89491065,82.449,82.371,36.3]
[1772208096935,10.9158,82.447,82.391,10.9231]
[1772208097343,20.2242051,82.48,82.39,9.13585596]
[1772208097344,17.95247694,82.478,82.39,9.13585596]
[1772208097543,20.2242051,82.48,82.39,9.13585596]
[1772208097544,10.9147,82.455,82.405,10.9213]
[1772208097744,12.56554265,82.454,82.39,9.13585596]
[1772208097940,12.56554265,82.453,82.39,9.13585596]
[1772208098133,12.56554265,82.452,82.39,9.13585596]
[1772208098338,0.07967805,82.439,82.39,9.13585596]
[1772208098539,17.95247694,82.476,82.39,9.13585596]
[1772208098744,12.4617944,82.475,82.39,9.13585596]
[1772208099046,17.95052698,82.455,82.39,9.13585596]
[1772208099242,17.93225551,82.453,82.39,9.13585596]
[1772208099543,30.20294556,82.452,82.39,9.13585596]
[1772208099738,12.27069005,82.451,82.39,9.13585596]
[1772208099938,17.93225551,82.452,82.39,9.13585596]
[1772208099939,12.27069005,82.45,82.422,0.0795396]
[1772208100140,12.27069005,82.449,82.422,0.0795396]
[1772208100444,17.93225551,82.452,82.422,0.0795396]
[1772208100644,10.9153,82.451,82.422,0.0795396]
[1772208101347,17.93225551,82.452,82.422,0.0795396]
[1772208101941,17.94934033,82.468,82.422,0.0795396]
[1772208102243,17.94934033,82.468,82.318,291.0]
[1772208102447,17.94934033,82.468,82.314,469.54932752]
[1772208102448,10.9195,82.419,82.378,22.17973607]
[1772208102745,11.07150901,82.457,82.378,22.17973607]
[1772208102947,10.9185,82.427,82.38,22.17973607]
[1772208103345,12.70640006,82.426,82.38,22.17973607]
[1772208103546,12.70640006,82.425,82.38,22.17973607]
[1772208103845,10.919,82.423,82.38,22.17973607]
[1772208104048,11.07150901,82.446,82.38,22.17973607]
[1772208104049,12.70640006,82.422,82.38,22.17973607]
[1772208104248,11.07150901,82.451,82.38,22.17973607]
[1772208104545,10.9179,82.431,82.38,22.17973607]
[1772208104748,11.07150901,82.464,82.381,22.18521448]
[1772208104945,11.07150901,82.47,82.381,22.18521448]
[1772208105137,11.07150901,82.474,82.402,22.26440987]
[1772208105338,11.07150901,82.483,82.402,22.26440987]
[1772208105647,11.05643419,82.484,82.402,22.26440987]
[1772208105943,10.9143,82.459,82.403,22.22556761]
[1772208106243,11.05643419,82.485,82.403,22.22556761]
[1772208106448,11.05643419,82.484,82.403,22.22556761]
[1772208106653,11.05643419,82.482,82.403,22.22556761]
[1772208107250,11.05643419,82.482,82.434,0.07972026]
[1772208107447,11.05643419,82.485,82.434,0.07972026]
[1772208107950,10.9152,82.451,82.409,22.30441985]
[1772208108450,9.13585596,82.5,82.409,22.30441985]
[1772208108652,11.05125262,82.488,82.409,22.30441985]
[1772208109148,11.05125262,82.497,82.411,22.31029429]
[1772208109361,11.05125262,82.497,82.44,0.07900609]
[1772208109547,11.05125262,82.503,82.44,0.07900609]
[1772208109848,11.05125262,82.509,82.427,22.27340665]
[1772208110352,9.13585596,82.51,82.429,22.27895959]
[1772208110556,11.05370158,82.524,82.431,22.27895959]
[1772208110754,11.05370158,82.529,82.46,0.08035879]
[1772208110947,10.9075,82.509,82.46,0.08035879]
[1772208111348,10.9075,82.509,82.453,22.26448769]
[1772208112055,10.9075,82.509,82.473,0.07772247]
[1772208112458,10.9063,82.519,82.473,0.07772247]
[1772208113052,9.13585596,82.55,82.471,22.2698207]
[1772208113258,9.13585596,82.57,82.475,22.12967187]
[1772208113653,10.9033,82.541,82.49,33.03957187]
[1772208113853,10.9033,82.541,82.514,0.08274532]
[1772208114960,10.9044,82.533,82.49,22.12967187]
[1772208115758,10.9054,82.525,82.49,22.12967187]
[1772208116560,9.13585596,82.55,82.455,22.12508168]
[1772208116753,9.13585596,82.53,82.455,22.12508168]
[1772208117062,11.77626457,82.529,82.455,22.12508168]
[1772208117260,10.9086,82.502,82.455,22.12508168]
[1772208117671,0.0772627,82.511,82.466,22.129308]
[1772208117962,10.9062,82.52,82.466,22.129308]
[1772208118154,11.78707203,82.519,82.466,22.129308]
[1772208118358,10.9068,82.515,82.466,22.129308]
[1772208118559,0.08395402,82.501,82.466,22.129308]
[1772208120162,11.10459178,82.549,82.466,22.129308]
[1772208120364,11.45717753,82.548,82.466,22.129308]
[1772208120564,10.9051,82.528,82.475,22.15339745]
[1772208120764,11.11193904,82.568,82.475,22.15339745]
[1772208121065,11.4641586,82.567,82.475,22.15339745]
[1772208121270,11.4641586,82.566,82.475,22.15339745]
[1772208121562,11.4641586,82.565,82.513,0.08453532]
[1772208121762,11.12343099,82.568,82.484,22.05146006]
[1772208121966,11.47038146,82.567,82.484,22.05146006]
[1772208122166,11.47038146,82.566,82.484,22.05146006]
[1772208122367,9.13585596,82.53,82.449,22.09751254]
[1772208122568,11.47038146,82.529,82.449,22.09751254]
[1772208122761,10.9081,82.505,82.45,10.9153]
[1772208122963,9.13585596,82.53,82.45,33.01281254]
[1772208123163,10.9102,82.489,82.45,22.09751254]
[1772208123468,0.07644895,82.498,82.421,22.0841594]
[1772208123667,11.46716777,82.497,82.421,22.0841594]
[1772208123862,10.9107,82.485,82.421,22.0841594]
[1772208124066,0.07977494,82.468,82.421,22.0841594]
[1772208124265,0.07977494,82.468,82.429,22.08780601]
[1772208125266,10.9109,82.484,82.44,0.0795646]
[1772208127368,9.13585596,82.54,82.454,22.10050029]
[1772208127570,11.48221959,82.539,82.454,22.10050029]
[1772208127766,11.48221959,82.538,82.454,22.10050029]
[1772208128072,9.13585596,82.54,82.454,22.10050029]
[1772208128267,11.48021087,82.539,82.454,22.10050029]
[1772208128471,11.48021087,82.538,82.488,0.07818025]
[1772208128666,10.9074,82.511,82.488,0.07818025]
[1772208129067,10.9074,82.511,82.469,22.10399224]
[1772208129670,11.13352701,82.534,82.485,22.099387]
[1772208129874,11.13352701,82.556,82.485,22.099387]
[1772208130070,11.49227155,82.555,82.485,22.099387]
[1772208130271,11.49227155,82.554,82.486,22.10523171]
[1772208130467,11.49227155,82.553,82.486,22.10523171]
[1772208130768,11.49227155,82.552,82.486,22.10523171]
[1772208130972,11.49227155,82.551,82.486,22.10523171]
[1772208131169,11.49227155,82.55,82.511,0.07907962]
[1772208131371,11.49227155,82.549,82.511,0.07907962]
[1772208131673,11.49227155,82.548,82.511,0.07907962]
[1772208131878,11.49227155,82.547,82.511,0.07907962]
[1772208132175,11.49227155,82.546,82.511,0.07907962]
[1772208132373,11.49227155,82.545,82.511,0.07907962]
[1772208132562,11.49227155,82.544,82.511,0.07907962]
[1772208132764,10.9047,82.531,82.511,0.07907962]
[1772208133468,11.13352701,82.561,82.511,0.07907962]
[1772208133676,11.45347918,82.56,82.511,0.07907962]
[1772208133869,21.7998,82.568,82.511,0.07907962]
[1772208133870,11.45347918,82.559,82.511,0.07907962]
[1772208134065,11.45347918,82.558,82.492,22.12284442]
[1772208134267,10.9035,82.54,82.495,22.1260696]
[1772208134474,9.14853673,82.57,82.495,22.1260696]
[1772208134770,11.45151978,82.569,82.509,0.07727794]
[1772208134975,9.14853673,82.57,82.509,0.07727794]
[1772208134976,11.45151978,82.568,82.509,0.07727794]
[1772208135275,11.45151978,82.567,82.497,33.01212925]
[1772208135474,11.45151978,82.566,82.497,33.01212925]
[1772208135674,11.45151978,82.565,82.497,33.01212925]
[1772208135876,11.45151978,82.564,82.497,33.01212925]
[1772208136076,11.45151978,82.563,82.497,33.01212925]
[1772208136277,11.45151978,82.562,82.497,33.01212925]
[1772208136575,11.45151978,82.561,82.497,33.01212925]
[1772208136878,10.9037,82.538,82.497,22.10312925]
[1772208137074,10.9037,82.538,82.521,0.07945389]
[1772208137278,10.9057,82.523,82.481,22.15271114]
[1772208137578,9.14853673,82.55,82.451,22.15271114]
[1772208137772,11.44649113,82.549,82.451,22.15271114]
[1772208137974,21.8052,82.547,82.463,22.15271114]
[1772208138167,11.44649113,82.546,82.463,22.15271114]
[1772208138372,11.44649113,82.545,82.463,22.15271114]
[1772208138571,21.8052,82.547,82.473,22.15573065]
[1772208138572,10.9068,82.515,82.473,22.15573065]
[1772208138769,0.08471774,82.513,82.473,22.15573065]
[1772208139880,11.13352701,82.561,82.482,22.14776639]
[1772208140081,11.44971125,82.56,82.482,22.14776639]
[1772208140276,11.44971125,82.559,82.482,22.14776639]
[1772208140479,11.44971125,82.558,82.482,22.14776639]
[1772208140678,11.44971125,82.557,82.482,22.14776639]
[1772208140878,11.44971125,82.556,82.482,22.14776639]
[1772208141077,10.9056,82.524,82.512,0.0798094]
[1772208141678,10.9056,82.524,82.485,22.15627761]
[1772208142076,10.9056,82.524,82.51,0.07964327]
[1772208142273,21.8,82.567,82.51,0.07964327]
[1772208142476,11.45514894,82.566,82.51,0.07964327]
[1772208142677,11.45514894,82.565,82.51,0.07964327]
[1772208142878,11.45514894,82.564,82.487,22.15913666]
[1772208143080,11.45514894,82.563,82.487,22.15913666]
[1772208143278,11.45514894,82.562,82.487,22.15913666]
[1772208143586,11.45514894,82.561,82.489,22.18352057]
[1772208143782,11.45514894,82.56,82.489,22.18352057]
[1772208144079,11.45514894,82.559,82.516,0.0791916]
[1772208144281,10.9043,82.534,82.516,0.0791916]
[1772208144679,10.9043,82.534,82.489,22.18352057]
[1772208145187,10.9043,82.534,82.517,0.08127102]
[1772208145780,10.9033,82.541,82.517,0.08127102]
[1772208146681,10.9042,82.535,82.517,0.08127102]
[1772208147188,10.9042,82.535,82.503,22.21634334]
[1772208147489,11.13352701,82.576,82.503,22.21634334]
[1772208147684,11.47367372,82.575,82.518,22.27163211]
[1772208147985,11.47367372,82.574,82.518,22.27163211]
[1772208148185,33.27207372,82.573,82.498,22.19574736]
[1772208148386,11.47367372,82.572,82.498,22.19574736]
[1772208148585,10.9032,82.542,82.499,33.10454736]
[1772208149085,10.9032,82.542,82.527,0.08439894]
[1772208150577,9.14853673,82.56,82.471,22.23980832]
[1772208150778,11.13352701,82.551,82.471,22.23980832]
[1772208150987,11.13352701,82.547,82.471,22.23980832]
[1772208151287,11.13352701,82.542,82.471,22.23980832]
[1772208151588,11.36444776,82.541,82.471,22.23980832]
[1772208151787,11.36444776,82.54,82.471,22.23980832]
[1772208151989,10.9075,82.51,82.471,22.23980832]
[1772208155503,0.08414317,82.514,82.471,22.23980832]
[1772208157002,0.08414317,82.514,82.451,36.3]
[1772208157003,0.08414317,82.514,82.474,22.20964612]
[1772208157501,10.9065,82.517,82.474,22.20964612]
[1772208157701,11.41043957,82.516,82.474,22.20964612]
[1772208157902,11.41043957,82.515,82.474,22.20964612]
[1772208158102,11.41043957,82.515,82.451,36.3]
[1772208158103,11.41043957,82.514,82.476,22.25095653]
[1772208158302,10.9065,82.517,82.476,22.25095653]
[1772208158503,11.41044693,82.516,82.476,22.25095653]
[1772208158701,11.41044693,82.515,82.487,0.07945106]
[1772208159000,10.9056,82.524,82.487,22.29237403]
[1772208159304,11.40967007,82.523,82.487,22.29237403]
[1772208159503,11.13352701,82.543,82.487,22.29237403]
[1772208159704,11.41134461,82.542,82.487,22.29237403]
[1772208159903,11.41134461,82.541,82.487,22.21292297]
[1772208160101,11.41134461,82.54,82.487,22.21292297]
[1772208160302,10.9053,82.526,82.506,0.07739669]
[1772208160502,11.41134461,82.525,82.487,22.21292297]
[1772208160804,11.41134461,82.524,82.487,22.21292297]
[1772208161104,11.41134461,82.523,82.487,22.21292297]
[1772208161305,10.9053,82.526,82.487,22.21292297]
[1772208161494,11.41847129,82.525,82.487,22.21292297]
[1772208161698,11.41847129,82.524,82.487,22.21292297]
[1772208161898,11.41847129,82.523,82.487,22.21292297]
[1772208162103,11.41847129,82.522,82.487,22.21292297]
[1772208162300,11.41847129,82.521,82.489,22.23318008]
[1772208162498,11.13352701,82.543,82.489,22.23318008]
[1772208162698,14.84976488,82.553,82.489,22.23318008]
[1772208162699,11.13352701,82.553,82.489,22.23318008]
[1772208163094,11.13352701,82.554,82.489,22.23318008]
[1772208163300,11.13352701,82.555,82.489,22.23318008]
[1772208163500,11.13352701,82.554,82.489,22.23318008]
[1772208163801,11.13352701,82.549,82.513,0.08105667]
[1772208163998,11.13352701,82.55,82.513,0.08105667]
[1772208164194,11.13352701,82.551,82.513,0.08105667]
[1772208164499,11.13352701,82.551,82.489,22.23318008]
[1772208165004,11.13352701,82.551,82.471,16.47867224]
[1772208165206,11.13352701,82.535,82.471,16.47867224]
[1772208165404,11.13352701,82.53,82.471,16.47867224]
[1772208165704,0.07867461,82.511,82.471,16.47867224]
[1772208166701,10.9089,82.499,82.456,16.44072596]
[1772208166899,0.07867461,82.511,82.456,16.44072596]
[1772208167095,11.13352701,82.511,82.456,16.44072596]
[1772208167301,11.13352701,82.521,82.46,16.38788361]
[1772208167594,0.07801825,82.492,82.46,16.38788361]
[1772208170112,10.9073,82.511,82.46,16.38788361]
[1772208170808,10.9073,82.511,82.461,16.30551542]
[1772208171408,10.9064,82.518,82.465,10.9133]
[1772208171807,11.22343443,82.54,82.466,16.33910062]
[1772208172009,11.22343443,82.541,82.466,16.33910062]
[1772208172205,11.22343443,82.554,82.49,9.14853673]
[1772208172407,11.22343443,82.565,82.491,16.34124283]
[1772208172809,4.88769351,82.512,82.475,16.34124283]
[1772208173001,11.22343443,82.537,82.475,16.34124283]
[1772208173208,11.22343443,82.54,82.475,16.34124283]
[1772208173407,11.22343443,82.543,82.475,16.34124283]
[1772208174207,11.22343443,82.547,82.475,16.34124283]
[1772208174513,0.07740681,82.517,82.475,16.34124283]
[1772208178314,0.07740681,82.517,82.476,10.9118]
[1772208178516,11.22343443,82.55,82.475,16.34124283]
[1772208178711,11.30079148,82.549,82.475,16.34124283]
[1772208179020,11.30079148,82.548,82.489,15.92729516]
[1772208179215,14.96457924,82.566,82.488,0.07811256]
[1772208179216,10.9043,82.534,82.49,15.92605959]
[1772208180418,10.9051,82.528,82.49,15.92605959]
[1772208180812,11.27286576,82.527,82.504,0.07720652]
[1772208181013,21.8024,82.558,82.45,9.14853673]
[1772208181014,11.27286576,82.526,82.46,15.83245279]
[1772208181213,11.22343443,82.533,82.46,15.83245279]
[1772208181214,0.08133295,82.517,82.46,15.83245279]
[1772208181518,11.27286576,82.516,82.46,15.83245279]
[1772208181712,11.27286576,82.515,82.46,15.83245279]
[1772208181913,10.9091,82.498,82.46,15.83245279]
[1772208183016,11.27283379,82.497,82.431,15.83345562]
[1772208183220,11.27283379,82.496,82.431,15.83345562]
[1772208183520,11.27283379,82.495,82.431,15.83345562]
[1772208183720,11.26961674,82.494,82.453,15.83067451]
[1772208183913,11.22343443,82.513,82.453,15.83067451]
[1772208184113,11.27065967,82.512,82.453,15.83067451]
[1772208184319,11.27065967,82.511,82.453,15.83067451]
[1772208184515,11.27065967,82.51,82.453,15.83067451]
[1772208184720,11.27065967,82.509,82.453,15.83067451]
[1772208185019,10.9101,82.49,82.453,15.83067451]
[1772208186020,10.9101,82.49,82.463,0.07875437]
[1772208186314,10.911,82.483,82.463,0.07875437]
[1772208186920,10.911,82.483,82.453,15.83067451]
[1772208188020,10.91,82.491,82.434,10.9174]
[1772208188220,11.27115557,82.49,82.46,0.08062437]
[1772208188526,11.27115557,82.489,82.46,0.08062437]
[1772208188829,11.22343443,82.516,82.46,0.08062437]
[1772208189124,11.27488526,82.515,82.46,15.84491729]
[1772208189325,11.27488526,82.514,82.46,15.76429292]
[1772208189519,11.27488526,82.513,82.46,15.76429292]
[1772208189723,10.9077,82.508,82.479,0.07733911]
[1772208190517,10.9068,82.515,82.479,0.07733911]
[1772208190723,11.22343443,82.535,82.479,15.82121183]
[1772208190923,11.27506148,82.534,82.479,15.82121183]
[1772208191219,22.26705402,82.562,82.45,45.44853673]
[1772208191220,6.148e-05,82.533,82.481,15.7029237]
[1772208191426,11.22343443,82.569,82.491,15.7029237]
[1772208191624,11.22343443,82.569,82.499,15.7029237]
[1772208191826,10.9015,82.555,82.506,15.7029237]
[1772208192422,10.9004,82.563,82.508,15.70365755]
[1772208192626,11.22343443,82.578,82.511,15.70365755]
[1772208192827,11.22343443,82.588,82.522,15.78261997]
[1772208193024,11.22343443,82.583,82.522,15.78261997]
[1772208193329,11.22343443,82.583,82.522,15.70365755]
[1772208193821,11.22343443,82.582,82.522,15.70365755]
[1772208194217,11.22343443,82.583,82.522,15.70365755]
[1772208194928,10.9012,82.558,82.522,15.70365755]
[1772208195126,11.22343443,82.582,82.522,15.70365755]
[1772208195325,0.07649466,82.561,82.523,10.9056]
[1772208195729,0.07649466,82.561,82.527,15.61918086]
[1772208196226,10.8987,82.576,82.527,15.61918086]
[1772208196728,0.07733893,82.552,82.527,15.61918086]
[1772208197324,0.07733893,82.552,82.506,15.60687665]
[1772208197831,11.22343443,82.59,82.506,15.60687665]
[1772208198031,11.22343443,82.594,82.516,15.60687665]
[1772208198232,11.22343443,82.596,82.516,15.60687665]
[1772208198431,11.22343443,82.603,82.521,15.60741247]
[1772208198728,11.22343443,82.608,82.521,15.60741247]
[1772208199125,0.07856259,82.57,82.521,15.60741247]
[1772208200932,10.9,82.567,82.521,15.60741247]
[1772208202732,10.8988,82.576,82.531,15.42693053]
[1772208204539,10.8997,82.569,82.531,15.42693053]
[1772208205035,4.26582306,82.58,82.545,0.07809397]
[1772208205940,10.8995,82.57,82.545,0.07809397]
[1772208207334,10.9005,82.562,82.545,0.07809397]
[1772208207539,4.26582306,82.58,82.545,0.07809397]
[1772208208144,4.26582306,82.57,82.513,15.35626773]
[1772208208340,4.26582306,82.56,82.513,15.35626773]
[1772208208536,10.9014,82.556,82.515,15.39531472]
[1772208208934,4.26582306,82.58,82.521,15.39531472]
[1772208209237,4.26582306,82.6,82.541,15.39955258]
[1772208209437,4.26582306,82.59,82.541,15.39955258]
[1772208209639,11.05564063,82.589,82.541,15.39955258]
[1772208209836,4.26582306,82.59,82.541,15.39955258]
[1772208209837,10.8991,82.573,82.541,15.39955258]
[1772208210037,4.26582306,82.57,82.521,15.39974697]
[1772208210634,10.9007,82.561,82.521,15.39974697]
[1772208210835,4.26582306,82.58,82.521,15.39974697]
[1772208211138,4.26582306,82.57,82.521,15.39974697]
[1772208211344,10.9014,82.556,82.521,15.39974697]
[1772208211933,4.26582306,82.58,82.521,15.39974697]
[1772208212741,0.08005813,82.559,82.521,15.39974697]
[1772208212931,0.08005813,82.559,82.523,15.39333849]
[1772208213133,0.08005813,82.559,82.531,15.39363796]
[1772208213335,10.8995,82.571,82.531,15.39363796]
[1772208214641,10.8983,82.579,82.544,15.39381545]
[1772208215138,4.26582306,82.6,82.551,15.39381545]
[1772208215338,21.7864,82.618,82.561,15.41229837]
[1772208215544,8.68849618,82.616,82.53,9.13331243]
[1772208215744,21.7864,82.618,82.53,9.13331243]
[1772208215745,10.8967,82.592,82.541,10.9032]
[1772208215942,10.8967,82.592,82.581,0.07794334]
[1772208216540,8.68849618,82.614,82.547,10.9024]
[1772208216736,8.68849618,82.614,82.53,9.13331243]
[1772208216737,11.04979181,82.613,82.53,9.13331243]
[1772208216941,8.68849618,82.614,82.53,9.13331243]
[1772208217143,10.8957,82.599,82.546,10.9025]
[1772208217336,10.8957,82.599,82.563,0.0771295]
[1772208219247,8.95304534,82.628,82.565,11.08125733]
[1772208219546,21.7761,82.657,82.563,0.0771295]
[1772208219547,8.9913023,82.643,82.571,11.08125733]
[1772208219746,11.03611796,82.642,82.571,11.08125733]
[1772208219938,8.9913023,82.643,82.571,11.08125733]
[1772208220141,11.03525714,82.642,82.571,11.08125733]
[1772208220348,8.9913023,82.643,82.571,11.08125733]
[1772208220546,10.8914,82.631,82.599,0.0810691]
[1772208221948,9.08138888,82.649,82.573,11.74586005]
[1772208222246,8.99996816,82.647,82.551,11.74586005]
[1772208222451,10.8952,82.603,82.551,11.74586005]
[1772208223549,0.07768936,82.585,82.551,11.74586005]
[1772208224454,10.8961,82.596,82.551,11.74586005]
[1772208224947,10.897,82.589,82.551,11.74586005]
[1772208225348,9.21233712,82.606,82.551,11.74586005]
[1772208225549,10.8961,82.596,82.551,11.74586005]
[1772208226554,10.8939,82.613,82.553,11.74586005]
[1772208227851,10.8939,82.613,82.55,9.13331243]
[1772208227852,10.8939,82.613,82.568,11.74586005]
[1772208228656,9.33239475,82.626,82.551,11.74586005]
[1772208228956,9.44754744,82.624,82.551,11.74586005]
[1772208229158,9.44295595,82.6,82.551,11.74586005]
[1772208230152,9.47676031,82.598,82.534,11.74586005]
[1772208230353,10.8997,82.569,82.534,11.74586005]
[1772208230847,9.51032664,82.606,82.534,11.74586005]
[1772208231049,9.51032664,82.604,82.534,11.74586005]
[1772208231251,9.66872807,82.602,82.534,11.74586005]
[1772208231449,9.66872807,82.6,82.534,11.74586005]
[1772208231650,9.70202728,82.584,82.534,11.74586005]
[1772208232255,10.8995,82.57,82.534,11.74586005]
[1772208232461,10.8995,82.57,82.551,0.07662737]
[1772208233771,10.8985,82.578,82.551,0.07662737]
[1772208234462,9.70202728,82.584,82.551,0.07662737]
[1772208234668,11.07768653,82.583,82.551,0.07662737]
[1772208234868,9.75725567,82.599,82.551,0.07662737]
[1772208235069,10.8974,82.586,82.551,0.07662737]
[1772208235270,11.09115388,82.585,82.551,11.82248742]
[1772208235466,9.75725567,82.599,82.551,11.82248742]
[1772208235673,11.09035363,82.598,82.551,11.82248742]
[1772208235873,11.09035363,82.597,82.551,11.82248742]
[1772208236064,11.09035363,82.596,82.551,11.82248742]
[1772208236266,11.09035363,82.595,82.551,11.82248742]
[1772208236466,11.09035363,82.594,82.551,11.82248742]
[1772208236662,11.09035363,82.593,82.551,11.82248742]
[1772208236862,10.8971,82.588,82.551,11.82248742]
[1772208237074,11.09035363,82.587,82.551,11.82248742]
[1772208237271,11.09035363,82.586,82.551,11.82248742]
[1772208237472,10.8971,82.588,82.551,11.82248742]
[1772208237473,11.09035363,82.585,82.551,11.82248742]
[1772208237673,10.8971,82.588,82.551,11.82248742]
[1772208237869,11.1013274,82.587,82.551,11.82248742]
[1772208238075,10.8975,82.585,82.551,11.82248742]
[1772208238266,9.75725567,82.599,82.551,11.82248742]
[1772208238267,11.1013274,82.584,82.551,11.82248742]
[1772208238467,11.1013274,82.583,82.551,11.82248742]
[1772208238667,11.1013274,82.582,82.551,11.82248742]
[1772208238868,11.1013274,82.581,82.551,11.82248742]
[1772208239073,9.75725567,82.599,82.551,11.82248742]
[1772208239273,10.8981,82.581,82.551,0.07662737]
[1772208239473,11.0313674,82.58,82.551,0.07662737]
[1772208239673,11.0313674,82.579,82.551,0.07662737]
[1772208239974,11.0313674,82.578,82.53,11.74586005]
[1772208240175,11.0313674,82.577,82.557,0.07809753]
[1772208240370,11.0313674,82.576,82.557,0.07809753]
[1772208240577,9.99553768,82.584,82.557,0.07809753]
[1772208240774,11.03284012,82.583,82.557,0.07809753]
[1772208240975,11.03284012,82.582,82.557,0.07809753]
[1772208241175,11.03284012,82.581,82.557,0.07809753]
[1772208241372,11.03284012,82.58,82.557,0.07809753]
[1772208241677,11.03284012,82.579,82.557,0.07809753]
[1772208241877,10.8988,82.576,82.557,0.07809753]
[1772208242078,11.03284012,82.578,82.51,71.13331243]
[1772208242079,10.017529,82.574,82.52,10.9061]
[1772208242280,10.01767531,82.572,82.52,11.74586005]
[1772208242476,10.01767531,82.572,82.491,36.3]
[1772208242477,10.9028,82.545,82.491,11.74586005]
[1772208242871,10.01767531,82.572,82.5,11.74586005]
[1772208243071,10.04695622,82.57,82.5,11.74586005]
[1772208243275,10.04695622,82.57,82.49,9.13331243]
[1772208243276,4.26739386,82.56,82.511,11.74586005]
[1772208243471,11.02668793,82.559,82.511,11.74586005]
[1772208243672,11.02668793,82.558,82.511,11.74586005]
[1772208243874,0.07869687,82.544,82.514,11.74586005]
[1772208245277,4.26739386,82.58,82.524,11.74586005]
[1772208245475,11.03296437,82.579,82.531,11.74586005]
[1772208245676,11.03296437,82.578,82.541,11.74586005]
[1772208245877,10.16438745,82.598,82.541,11.74586005]
[1772208246075,10.8964,82.594,82.547,11.74586005]
[1772208246377,11.03300072,82.593,82.547,11.74586005]
[1772208246578,11.03300072,82.592,82.547,11.74586005]
[1772208246774,10.8968,82.59,82.562,0.07785879]
[1772208246978,10.16438745,82.598,82.562,0.07785879]
[1772208247175,4.26739386,82.58,82.532,11.74586005]
[1772208247470,10.14781436,82.589,82.532,11.74586005]
[1772208247678,21.09586977,82.588,82.532,11.74586005]
[1772208247878,10.17545057,82.588,82.532,11.74586005]
[1772208248079,10.91944576,82.587,82.532,11.74586005]
[1772208248379,10.91944576,82.586,82.534,11.74586005]
[1772208248576,0.07838444,82.568,82.534,11.74586005]
[1772208249782,0.07838444,82.568,82.537,10.9038]
[1772208250282,10.9,82.567,82.534,11.74586005]
[1772208250481,10.9,82.567,82.524,12.58139292]
[1772208251476,10.9,82.567,82.525,10.9054]
[1772208251683,10.9,82.567,82.525,23.48679292]
[1772208254287,10.9,82.567,82.525,12.58139292]
[1772208256186,0.07838444,82.568,82.525,12.58139292]
[1772208256982,10.9001,82.566,82.525,12.58139292]
[1772208257780,10.9008,82.561,82.5,9.14066548]
[1772208258088,10.52755381,82.56,82.51,12.58139292]
[1772208258284,10.9036,82.54,82.481,12.58139292]
[1772208258481,10.52763839,82.546,82.489,12.58139292]
[1772208258685,10.55164749,82.542,82.489,12.58139292]
[1772208258881,0.08034657,82.543,82.489,12.58139292]
[1772208259085,10.55164749,82.558,82.489,12.58139292]
[1772208259388,10.4621622,82.556,82.5,12.58139292]
[1772208259785,10.4621622,82.556,82.507,12.58139292]
[1772208259985,0.07660601,82.536,82.507,12.58139292]
[1772208261986,0.07660601,82.536,82.48,9.14066548]
[1772208261987,0.07660601,82.536,82.492,12.58139292]
[1772208262491,10.44514138,82.543,82.492,12.58139292]
[1772208263489,10.9041,82.535,82.492,12.58139292]
[1772208263790,0.07795183,82.526,82.492,12.58139292]
[1772208264491,10.51307014,82.557,82.492,12.58139292]
[1772208265887,10.9014,82.556,82.506,10.9079]